Cogmind - Beta 16.1 @@@ ROGUE MODE // 2026.04.01 @ 22:17:42 Player: erfael Result: Destroyed by G-34 Mercenary with Small Laser Performance ------------- Evolutions (0) 0 Regions Visited (2) 400 Robots Destroyed (28) 140 Value Destroyed (571) 571 Prototype IDs (0) 0 Alien Tech Used (0) 0 Bonus (0) 0 TOTAL SCORE: 1111 Bonus ------- None Cogmind --------- Core Integrity 0/250 Matter 230/300 Energy 125/125 System Corruption 0% Temperature Cool (29) Movement Walking (260) Ox2 Location -10/Mines Parts ------- > --- POWER (1) -------- Light Ion Engine > --- PROPULSION (2) --- Aluminum Leg > --- UTILITY (2) ------ Large Storage Unit Seismic Detector > --- WEAPON (2) ------- Light Assault Rifle Light Cannon > --- INVENTORY (15) --- Ion Engine Light Ion Engine Aluminum Leg Aluminum Leg Aluminum Leg Improved Terrain Scanner Improved Terrain Scanner EM Pulse Gun Light Assault Rifle Light Assault Rifle Peak State ------------ > --- POWER ------------ Light Ion Engine > --- PROPULSION ------- Aluminum Leg Aluminum Leg > --- UTILITY ---------- Large Storage Unit Seismic Detector > --- WEAPON ----------- Assault Rifle Light Assault Rifle > --- INVENTORY -------- Light Ion Engine Small Storage Unit Improved Terrain Scanner Improved Terrain Scanner Seismic Detector EM Pulse Gun [Rating: 8] Favorites ----------- Power Light Ion Engine Engine Light Ion Engine Propulsion Aluminum Leg Leg Aluminum Leg Utility Seismic Detector Device Seismic Detector Storage Large Storage Unit Weapon Assault Rifle Energy Gun Medium Laser Ballistic Gun Assault Rifle Ballistic Cannon Light Cannon Build | -11 -10 -10 ------- Run | Yrd Mat Min Slots Evolved . | . . . Power . | . . . Propulsion . | . . . Utility . | . . . Weapon . | . . . Parts Attached 21 | 7 11 3 Power 2 | 1 1 . Engine 2 | 1 1 . Core . | . . . Reactor . | . . . Propulsion 7 | 2 4 1 Treads . | . . . Leg 7 | 2 4 1 Wheel . | . . . Hover . | . . . Flight . | . . . Utility 4 | 2 2 . Device 2 | 1 1 . Storage 2 | 1 1 . Processor . | . . . Hackware . | . . . Protection . | . . . Artifact . | . . . Weapon 8 | 2 4 2 Energy Gun 2 | . 1 1 Energy Cannon . | . . . Ballistic Gun 5 | 2 3 . Ballistic Cannon 1 | . . 1 Launcher . | . . . Special Weapon . | . . . Impact Weapon . | . . . Slashing Weapon . | . . . Piercing Weapon . | . . . Special Melee Weapon . | . . . Unidentified Prototypes . | . . . Parts Lost 9 | . 6 3 Power 1 | . 1 . Propulsion 3 | . 1 2 Utility 1 | . 1 . Weapon 4 | . 3 1 Highest Loss Streak 5 | . 5 2 To Critical Strikes . | . . . Average Backups 7 | 2 8 10 Power 1 | . 1 2 Propulsion 1 | . 1 3 Utility 2 | 1 2 2 Weapon 3 | . 3 3 Tool/Special . | . . . Unused Backups 5 | . . 5 Power 2 | . . 2 Propulsion . | . . . Utility 2 | . . 2 Weapon 1 | . . 1 Tool/Special . | . . . Average Slot Usage (%) 98 | . 98 97 Engine 13 | . 13 14 Leg 27 | . 27 25 Device 13 | . 13 14 Storage 14 | . 14 14 Energy Gun 4 | . 5 2 Ballistic Gun 22 | . 22 22 Peak Build Rating 8 | 7 8 8 Average Rating 7 | 6 7 7 On Entrance 5 | . 7 8 Avg Prop Armor Cover (%) . | . . . Naked Turns . | . . . Heaviest Build 28 | 12 28 28 Greatest Support 20 | 20 20 20 Greatest Overweight (x) 2 | . 2 2 Average Overweight (x) . | . . 1 Largest Inventory Capacity 15 | 8 15 15 Average Capacity 14 | 7 14 15 Most Carried 11 | 5 11 11 Average Carried 7 | 2 8 10 Final Capacity 15 | 8 15 15 Final Carried 11 | 5 11 10 Class Distribution -------------------- 96% | Mutant 3% | Scavenger-Mutant Dominant Class ---------------- Mutant | -10/Materials Mutant | -10/Mines Resources | -11 -10 -10 ----------- Run | Yrd Mat Min Matter Collected 722 | 342 341 39 Remotely . | . . . Salvage Created 850 | 166 435 249 Parts 52 | 15 27 10 Haulers Intercepted . | . . . Recyclers Shooed 1 | 1 . . Parts Field Recycled . | . . . Retrieved Matter . | . . . Parts Self-Destructed . | . . . Prevented . | . . . Parts Restored . | . . . Kills | -11 -10 -10 ------- Run | Yrd Mat Min Combat Hostiles Destroyed 22 | . 15 7 Guns 19 | . 15 4 Cannons 2 | . . 2 AOE 1 | . . 1 Classes Destroyed 5 | 2 3 . Worker 1 | . 1 . Tunneler 4 | 4 . . Recycler 1 | 1 . . Swarmer 11 | . 9 2 Grunt 11 | . 6 5 Best Kill Streak 7 | 3 7 6 Combat Bots Only 6 | . 6 6 Max Kills in Single Turn 2 | 1 1 2 Gunslinging 1 | . . 1 Exploded 1 | . . 1 Melee . | . . . Uniques/NPCs Destroyed . | . . . Combat | -11 -10 -10 -------- Run | Yrd Mat Min Hostile Shots Fired 159 | . 102 57 Missed 38 | . 27 11 Hits 121 | . 75 46 Projectile 121 | . 75 46 Damage Taken 1282 | . 755 527 Core 253 | . 113 140 Absorbed by Shields . | . . . Core Remaining (%) 100 | 100 . . Volleys Fired 94 | 18 51 25 Largest 2 | 2 2 2 Hottest 70 | 40 70 60 Shots Fired 177 | 36 92 49 Gun 165 | 36 92 37 Cannon 12 | . . 12 Launcher . | . . . Special . | . . . Kinetic 159 | 36 79 44 Thermal 13 | . 13 . Explosive . | . . . Electromagnetic 5 | . . 5 Robot Hit Streak 13 | 5 13 7 Robot Miss Streak 4 | 2 4 4 Penetration Max . | . . . Secondary Targets 4 | . 2 2 Max Gunslinging Chain 1 | . 1 1 Shots Hit Robots 106 | 20 52 34 Core Hits 45 | 7 23 15 Critical Kills . | . . . Critical Parts Destroyed . | . . . Critical Strikes 2 | . 2 . Burn 2 | . 2 . Melee Attacks . | . . . Impact . | . . . Slashing . | . . . Piercing . | . . . Sneak Attacks . | . . . Combat Hostiles . | . . . Follow-up Attacks . | . . . Damage Inflicted 1360 | 220 696 444 Guns 1146 | 220 696 230 Cannons 167 | . . 167 Explosions 47 | . . 47 Melee . | . . . Ramming . | . . . Kinetic 1171 | 220 608 343 Thermal 135 | . 88 47 Explosive . | . . . Electromagnetic 54 | . . 54 Impact . | . . . Slashing . | . . . Piercing . | . . . Highest Corruption . | . . . Average Corruption . | . . . Corruption Purged . | . . . Corruption Blocked . | . . . Overload Shots . | . . . Overflow Damage . | . . . Projectiles . | . . . Explosions . | . . . Melee . | . . . Knockbacks 1 | . . 1 Impact . | . . . Kinetic 1 | . . 1 Secondary . | . . . Self-Inflicted Damage 22 | . . 22 Shots 1 | . . 1 Rammed . | . . . Targets Rammed . | . . . Kicked . | . . . Crushed . | . . . Highest Temperature 85 | . 63 85 Average Temperature 25 | . 22 27 Received Heat Transfer 402 | . 219 183 Siege Activations . | . . . Martial Activations . | . . . Shielding Activations . | . . . Robots Disrupted . | . . . Combat Hostiles . | . . . Robots Corrupted . | . . . Combat Hostiles . | . . . Parts Fried . | . . . Impact Corruptions . | . . . Robots Melted . | . . . Combat Hostiles . | . . . Parts Melted 1 | . 1 . Heat Transferred 457 | . 407 50 Parts Sabotaged . | . . . Parts Stolen . | . . . Parts Stripped . | . . . Power Chain Reactions 1 | . . 1 Alert | -11 -10 -10 ------- Run | Yrd Mat Min Maximum Alert Level 1 | . 1 . Low Security (%) 87 | 100 84 100 Level 1 12 | . 15 . Level 2 . | . . . Level 3 . | . . . Level 4 . | . . . Level 5 . | . . . High Security . | . . . Max Security . | . . . Peak Influence 247 | 10 247 126 Initial 19 | . . 19 Average 77 | . 96 35 Influence Increases 659 | 25 448 186 Destroy 0b10 Robot/C 440 | . 300 140 Destroy 0b10 Robot/NC 30 | 25 5 . Destroy Leader 90 | . 50 40 Destroy Structure 9 | . 3 6 Lose Combat Pursuer 90 | . 90 . Influence Decreases 543 | 25 396 122 Entered New Map 33 | . . 33 Time Decay 420 | 25 336 59 Lost Part 90 | . 60 30 Squads Dispatched 3 | . 3 . Investigation . | . . . Extermination . | . . . Reinforcement 3 | . 3 . Assault . | . . . Garrison . | . . . Intercept . | . . . Searches Triggered . | . . . Construction Impeded . | . . . Haulers Reinforced . | . . . Active Scanning Responses . | . . . Cargo Convoy Interrupts . | . . . Stealth | -11 -10 -10 --------- Run | Yrd Mat Min Distress Signals 3 | . 3 . Communications Jammed . | . . . Distress Signals . | . . . Times Spotted 41 | . 32 9 Peak Tracking Total 8 | . 8 5 Tactical Retreats 3 | . 3 . Traps | -11 -10 -10 ------- Run | Yrd Mat Min Traps Triggered 2 | . 2 . Indirectly . | . . . Trap Hack Attempts . | . . . Triggered . | . . . Disarmed . | . . . Reprogrammed . | . . . Reused . | . . . Traps Extracted . | . . . Installed . | . . . Triggered . | . . . Machines | -11 -10 -10 ---------- Run | Yrd Mat Min Machines Disabled . | . . . Max in Single Turn . | . . . Machines Repaired . | . . . Machines Dismantled . | . . . Machines Sabotaged . | . . . Overloaded Fab Kills . | . . . Hacking | -11 -10 -10 --------- Run | Yrd Mat Min Machines Accessed 1 | . 1 . Terminals 1 | . 1 . Fabricators . | . . . Repair Stations . | . . . Recycling Units . | . . . Scanalyzers . | . . . Garrison Access . | . . . Total Hacks 2 | . 2 . Successful . | . . . Failed 2 | . 2 . Catastrophic . | . . . Database Lockouts . | . . . Manual 2 | . 2 . Terminals 2 | . 2 . Fabricators . | . . . Repair Stations . | . . . Recycling Units . | . . . Scanalyzers . | . . . Garrison Access . | . . . Terminal Hacks . | . . . Fabricator Hacks . | . . . Repair Station Hacks . | . . . Recycling Unit Hacks . | . . . Scanalyzer . | . . . Garrison Access Hacks . | . . . Unauthorized Hacks . | . . . Terminals . | . . . Fabricators . | . . . Repair Stations . | . . . Recycling Units . | . . . Scanalyzers . | . . . Garrison Access . | . . . Data Cores Recovered . | . . . Used . | . . . Hacking Detections . | . . . Full Trace Events . | . . . Feedback Events . | . . . Feedback Blocked . | . . . Robot Schematics Acquired . | . . . Robots Built . | . . . Authchips . | . . . Time . | . . . Total Robot Build Rating . | . . . Part Schematics Acquired . | . . . Parts Built . | . . . Authchips . | . . . Time . | . . . Total Part Build Rating . | . . . Part Studies Acquired . | . . . Parts Repaired . | . . . Time . | . . . Parts Recycled . | . . . Recycled Matter . | . . . Retrieved Matter . | . . . Retrieved Components . | . . . Parts Scanalyzed . | . . . Part Schematics Acquired . | . . . Parts Damaged . | . . . Bothacking | -11 -10 -10 ------------ Run | Yrd Mat Min Used RIF Installer . | . . . Robots Hacked . | . . . Non-combat . | . . . Combat . | . . . Robot Hacks Applied . | . . . Relay Couplers Released . | . . . Fabnet Peak Effective % . | . . . Robots Rewired . | . . . Allies Hacked . | . . . Hacks Repelled . | . . . Allies | -11 -10 -10 -------- Run | Yrd Mat Min Total Allies . | . . . Largest Group . | . . . Highest-Rated Group . | . . . Highest-Rated Ally . | . . . Total Orders . | . . . Ally Attacks . | . . . Total Damage . | . . . Kills . | . . . Allies Corrupted . | . . . Allies Melted . | . . . Intel | -11 -10 -10 ------- Run | Yrd Mat Min Active Infowar (turns) 1645 | 121 1332 192 Seismic 1645 | 121 1332 192 Robot Analysis Total . | . . . Derelict Logs Recovered . | . . . Drone Launches . | . . . Drone Recoveries . | . . . Exploration | -11 -10 -10 ------------- Run | Yrd Mat Min Turns Passed 1791 | 222 1377 192 Spaces Moved 819 | 138 622 59 Core 13 | 13 . . Treads . | . . . Legs 806 | 125 622 59 Wheels . | . . . Hover . | . . . Flight . | . . . Fastest Speed 50 | 50 120 190 Average Speed 176 | 113 189 191 Slowest Speed 260 | 120 260 260 Overloaded Moves . | . . . Propulsion Burnouts . | . . . Robots Hopped . | . . . Potential Cave-ins . | . . . Cave-ins Triggered . | . . . Exploration Rate (%) 32 | 6 77 14 Regions Visited 2 Branch Regions 1 Pre-discovered Areas . | . . . Known Exits Taken . | . . . Unknown Exits Taken 2 | 1 1 . Scrap Searched . | . . . Spaces Dug . | . . . Terrain Destroyed 6 | . . 6 Melee . | . . . Projectile . | . . . AOE 6 | . . 6 Terrain Rammed . | . . . Walls Destroyed . | . . . Machines Disabled . | . . . Actions | -11 -10 -10 --------- Run | Yrd Mat Min Total 986 | 167 726 93 Wait 39 | . 33 6 Move 817 | 137 621 59 Hop . | . . . Pick Up 11 | 5 6 . Fast Attach 11 | 7 3 1 Attach 6 | . 5 1 Detach . | . . . Swap 7 | . 6 1 Drop 1 | . 1 . Fire 94 | 18 51 25 Melee . | . . . Ram . | . . . Kick . | . . . Crush . | . . . Escape Stasis . | . . . Rewire . | . . . Trap . | . . . Miscellaneous . | . . . Route ------- -11/Scrapyard -10/Materials (discovered 4 exits: [*Mat x2] / [*Min x2]) -10/Mines History --------- Turn | Location | Event 7 | -11/Scrapyard | Discovered new exit (range 14) 223 | -11/Scrapyard | Entered Materials 300 | -10/Materials | Build established: Mutant 816 | -10/Materials | Lost 5 parts (1p1n1u2w) 893 | -10/Materials | Discovered new exit (range 7) 1129 | -10/Materials | Discovered new exit (range 11) 1377 | -10/Materials | Discovered new exit (range 10) 1503 | -10/Materials | Discovered new exit (range 5) 1600 | -10/Materials | Entered Mines 1713 | -10/Mines | Core integrity fell below 50% 1762 | -10/Mines | Core integrity fell below 20% 1792 | -10/Mines | Destroyed by G-34 Mercenary with Small Laser Last Messages --------------- 01729_ G-34 Mercenary destroyed. 01732_ K-01 Serf collects debris. 01736_ Acquired 39 matter. 01740_ K-01 Serf collects debris. 01743_ Aluminum Leg destroyed. 01744_ K-01 Serf collects debris. 01749_ G-47 Trooper destroyed. 01755_ R-06 Scavenger collects Aluminum Leg. 01763_ G-34 Mercenary destroyed. 01764_ R-06 Scavenger collects Ion Engine. 01765_ K-01 Serf collects debris. 01768_ Acquired Aluminum Leg. 01769_ K-01 Serf collects debris. 01777_ R-06 Scavenger collects Lgt. Assault Rifle. 01778_ K-01 Serf collects debris. 01781_ G-47 Trooper knocked back. 01781_ K-01 Serf collects debris. 01787_ G-47 Trooper destroyed. 01788_ Aluminum Leg destroyed. 01788_ K-01 Serf collects debris. Map ----- +----------------------------------------------------+ | ???????????????????????????????????????? | | ???????????????????????????????????????? | | ???????????????????????????????????????? | | ???????????????????????????????????????? | | ???????????????????????????????????????? | | ???????????????????????????????????????? | | ???????????????????????????????????????? | | ???????????????????????????????????????? | | ???????????????????????????????????????? | | ?????????????????????????? ????????????? | | ?????????????????????????? ????????????? | | ?????????????????????????? ????????????? | | ????????????????????????## #???????????? | | ???????????????????????? ???????????? | | ???????????????????????? #???????????? | | ????????????????????????# #???????????? | | ????????????????????????# %#???????????? | | ?????????????????????##?#%k##??????????? | | ????????????????????## ## % ??????????? | | ????????????????????# % ???????????? | | ????????????????????? ???????????? | | ?????????????????????? #???????????? | | ??????????????????????? %%!#???????????? | | ????????????????????????#g%#???????????? | | ????????????????????????# r#???????????? | | ????????????????????????#@ #???????????? | | ????????????????????????# #???????????? | | ????????????????????????# #???????????? | | ????????????????????????#% ###?????????? | | ????????????????????????# ;"#?????????? | | ????????????????????????#=*%!##????????? | | ????????????????????????##;;*"#????????? | | ?????????????????????????###["#????????? | | ???????????????????????????# ##????????? | | ???????????????????????????# #?????????? | | ???????????????????????????# #?????????? | | ???????????????????????????# #?????????? | | ???????????????????????????# #?????????? | | ????????????????############ ####??????? | | ????????????????# #??????? | | ????????????????# """ """ #??????? | | ????????????????# """ """ #??????? | | ????????????????# """ """ #??????? | | ????????????????# #??????? | | ????????????????# """ """ #??????? | | ????????????????# """ """ #??????? | | ????????????????# """ """ #??????? | | ????????????????# #??????? | | ????????????????# """ """ """ #??????? | | ????????????????# """ """ """ #??????? | +----------------------------------------------------+ Best States ------------- Heat Dissipation 25 Energy Generation 10 Energy Capacity 125 Matter Stores 300 Matter Capacity 300 Sight Range 16 Terrain Scan Density 10 Evasion (%) 55 Item Schematics ----------------- None Robot Schematics ------------------ None Fabricated ------------ Nothing Repaired ---------- Nothing Studied --------- None Alien Tech Used ----------------- None Achievements -------------- None Challenges ------------ None Game ------ Seed GlidesysPhysicsAssimilator Manual? 0 Play Time 00:11:27 Cumulative 60.0 hours Start 2026.04.01 @ 22:07:39 End 2026.04.01 @ 22:17:42 Sessions 1 Manual Loads 0 Difficulty Rogue Special Mode None Game No. 58 Rogue 58 Adventurer 0 Explorer 0 Win Type - Total 0 Types 0/0/0/0/0/0/0/0/0/0 Lore% 32 Gallery% 27 Achievement% 18 Wizard Run 0 Options --------- Layout 0 ASCII 0 Keyboard 1 Movement Numpad Keybinds 0 Fullscreen 2 Font 20/Terminus Map View 97x62 Zoom Use 0% Tactical HUD 1 Map Filters NONE Filters NONE Steam 1 RUN: d8b5bd60-5356-42f0-b0c8-ea84ad829f30